bitfinex/quotes_SOLUSD_20220102
["timestamp","ask_amount","ask_price","bid_price","bid_amount"]
[1641128273506,165.92892489,176.12,176.05,9.0186]
[1641128274804,166.18892489,176.12,176.05,9.0186]
[1641128278609,164.5786,176.12,176.05,9.0186]
[1641128289215,164.5786,176.12,176.05,0.5]
[1641128289415,164.5786,176.12,176.04,9.0194]
[1641128290117,166.18892489,176.12,176.04,9.0194]
[1641128292120,166.18892489,176.12,175.98,28.3995]
[1641128292320,166.68892489,176.12,175.98,28.3995]
[1641128292520,166.68892489,176.12,175.98,28.8995]
[1641128292922,1.3371,176.11,175.98,0.5]
[1641128293123,1.3371,176.11,175.97,1.2375]
[1641128293124,28.408,176.09,175.97,8.5229]
[1641128293323,1.61032489,176.1,175.92,1.3049]
[1641128293623,27.81623875,176.07,175.91,9.05052993]
[1641128293830,29.42656364,176.07,175.94,1.2554]
[1641128294025,30.18656364,176.07,175.94,1.2554]
[1641128294427,8.5231,176.03,175.94,1.7554]
[1641128294634,8.5231,176.03,175.94,1.2554]
[1641128294827,8.7831,176.03,175.94,1.7554]
[1641128295229,0.26,176.03,175.94,1.7554]
[1641128295630,1.5257,176.06,175.94,1.7554]
[1641128296029,1.5257,176.06,175.94,76.0111]
[1641128296229,8.5221,176.04,175.98,8.5223]
[1641128296433,8.5221,176.04,175.98,0.5]
[1641128296630,8.7821,176.04,175.98,0.5]
[1641128296830,8.7821,176.04,175.94,75.5111]
[1641128297029,8.7821,176.04,175.94,76.0111]
[1641128298334,8.7821,176.04,175.97,8.5228]
[1641128298531,8.5221,176.04,175.97,8.5228]
[1641128298734,8.5221,176.04,175.97,9.0228]
[1641128299836,1.2657,176.06,175.97,9.0228]
[1641128300034,10.0473,176.06,175.97,9.0228]
[1641128300235,165.8473,176.06,175.97,9.0228]
[1641128303663,165.5873,176.06,175.97,9.0228]
[1641128304965,165.8473,176.06,175.97,9.0228]
[1641128325316,165.5873,176.06,175.97,9.0228]
[1641128325518,165.5873,176.06,175.97,14.2708]
[1641128326119,165.5873,176.06,176.0,8.5211]
[1641128326521,165.5873,176.06,176.0,9.0211]
[1641128326721,165.8473,176.06,176.0,9.0211]
[1641128326919,165.5873,176.06,176.0,9.0211]
[1641128328021,165.8473,176.06,176.0,9.0211]
[1641128335032,165.8473,176.06,176.0,0.5]
[1641128335531,165.8473,176.06,175.99,9.0219]
[1641128340538,165.8473,176.06,175.98,1.3274]
[1641128340743,165.8473,176.06,175.94,76.7782]
[1641128340944,165.8473,176.06,175.94,77.2782]
[1641128341344,1.61032489,176.05,175.94,77.2782]
[1641128341544,8.5232,176.03,175.94,77.2782]
[1641128341743,164.3232,176.03,175.94,77.2782]
[1641128341944,164.5832,176.03,175.94,77.2782]
[1641128342147,29.04630651,176.02,175.94,77.2782]
[1641128342345,29.04630651,176.02,175.97,8.5228]
[1641128342545,29.30630651,176.02,175.97,8.5228]
[1641128342746,29.30630651,176.02,175.97,9.0228]
[1641128342944,185.10630651,176.02,175.97,9.0228]
[1641128343354,193.62950651,176.02,175.97,9.0228]
[1641128343551,193.62950651,176.02,175.97,0.5]
[1641128343952,193.62950651,176.02,175.96,9.0234]
[1641128344854,193.62950651,176.02,175.96,0.5]
[1641128345255,193.62950651,176.02,175.95,9.0238]
[1641128347674,193.62950651,176.02,175.95,8.5238]
[1641128347875,193.62950651,176.02,175.86,1.2159]
[1641128348075,194.12950651,176.02,175.9,1.2867]
[1641128348882,1.3387,176.01,175.9,1.2867]
[1641128349184,8.526,175.97,175.9,1.7867]
[1641128349582,8.786,175.97,175.9,10.3127]
[1641128349785,8.786,175.97,175.9,1.7867]
[1641128350183,164.586,175.97,175.9,1.7867]
[1641128351184,164.586,175.97,175.9,10.3127]
[1641128360124,164.586,175.97,175.9,1.7867]
[1641128360323,164.586,175.97,175.9,0.5]
[1641128360725,164.586,175.97,175.88,79.6996]
[1641128360931,164.586,175.97,175.88,0.5]
[1641128361125,1.2609,175.96,175.88,0.5]
[1641128361426,8.5274,175.94,175.87,8.5271]
[1641128361829,8.7874,175.94,175.87,9.0271]
[1641128362425,164.5874,175.94,175.87,9.0271]
[1641128367430,156.06,175.94,175.87,9.0271]
[1641128367631,155.8,175.94,175.87,9.0271]
[1641128367834,155.8,175.94,175.88,1.42669368]
[1641128368033,155.8,175.94,175.91,8.5238]
[1641128368234,158.70872489,176.04,175.92,3.02263581]
[1641128368434,31.86907666,175.98,175.92,4.78863581]
[1641128368933,32.12907666,175.98,175.92,4.78863581]
[1641128369236,32.12907666,175.98,175.94,8.5239]
[1641128369437,32.12907666,175.98,175.94,9.0239]
[1641128370938,187.92907666,175.98,175.94,9.0239]
[1641128374640,187.66907666,175.98,175.94,9.0239]
[1641128375943,196.19437666,175.98,175.87,29.84359368]
[1641128376142,196.45437666,175.98,175.82,101.95052993]
[1641128376342,196.45437666,175.98,175.85,1.7995]
[1641128377068,196.45437666,175.98,175.86,1.2185]
[1641128377445,196.45437666,175.98,175.86,1.7185]
[1641128378047,197.68047666,175.98,175.86,1.7185]
[1641128378247,197.68047666,175.98,175.89,8.5267]
[1641128378447,198.18047666,175.98,175.89,9.0267]
[1641128378649,197.68047666,175.98,175.89,9.0267]
[1641128378850,198.18047666,175.98,175.89,9.0267]
[1641128379454,198.18047666,175.98,175.89,0.5]
[1641128379851,198.18047666,175.98,175.88,9.0271]
[1641128381255,199.79080155,175.98,175.88,9.0271]
[1641128381856,199.53080155,175.98,175.88,9.0271]
[1641128382057,199.03080155,175.98,175.88,9.0271]
[1641128382257,197.42047666,175.98,175.88,9.0271]
[1641128383258,197.68047666,175.98,175.88,9.0271]
[1641128384058,197.68047666,175.98,175.89,1.3207]
[1641128384358,197.68047666,175.98,175.9,8.5262]
[1641128384774,197.68047666,175.98,175.9,9.0262]
[1641128387480,197.68047666,175.98,175.9,0.5]
[1641128387682,197.68047666,175.98,175.89,10.3473]
[1641128388284,198.18047666,175.98,175.89,9.0266]
[1641128388481,198.18047666,175.98,175.89,0.5]
[1641128388883,198.18047666,175.98,175.88,9.0271]
[1641128389983,197.68047666,175.98,175.88,9.0271]
[1641128390986,197.68047666,175.98,175.89,1.2414]
[1641128391184,165.5514,175.98,175.89,14.5629]
[1641128391384,164.3253,175.98,175.89,15.0629]
[1641128391588,155.8,175.98,175.89,15.0629]
[1641128391783,157.41032489,175.99,175.89,16.48959368]
[1641128392184,26.44479049,175.98,175.89,16.48959368]
[1641128392385,182.24479049,175.98,175.89,16.48959368]
[1641128392585,182.50479049,175.98,175.89,11.69459368]
[1641128393788,156.06,175.98,175.89,11.69459368]
[1641128397397,156.56,175.98,175.89,11.69459368]
[1641128398196,156.06,175.98,175.89,11.69459368]
[1641128403101,156.06,175.98,175.89,11.95459368]
[1641128403703,155.8,175.98,175.89,11.95459368]
[1641128404704,192.89181844,176.0,175.89,11.95459368]
[1641128405105,193.15181844,176.0,175.89,11.95459368]
[1641128406110,193.15181844,176.0,175.89,10.5279]
[1641128406507,193.15181844,176.0,175.89,11.95459368]
[1641128412010,193.15181844,176.0,175.89,11.69459368]
[1641128412210,193.15181844,176.0,175.89,10.2679]
[1641128413011,1.2931,175.99,175.89,10.2679]
[1641128413213,8.526,175.97,175.89,10.2679]
[1641128413410,8.526,175.97,175.89,9.0265]
[1641128413611,164.586,175.97,175.89,9.0265]
[1641128419314,156.06,175.97,175.89,9.0265]
[1641128422919,156.06,175.97,175.89,10.3368]
[1641128438448,164.5855,175.97,175.89,10.3368]
[1641128444458,164.5855,175.97,175.89,9.0265]
[1641128451270,164.5855,175.97,175.86,1.2887]
[1641128451566,165.0855,175.97,175.87,8.5272]
[1641128451766,165.0855,175.97,175.86,1.2887]
[1641128451974,1.2902,175.96,175.86,1.2887]
[1641128452166,8.5279,175.93,175.86,1.2887]
[1641128452367,31.46367002,175.92,175.86,0.5]
[1641128452571,31.72367002,175.92,175.84,154.2356]
[1641128452769,31.72367002,175.92,175.84,155.5104]
[1641128453369,31.72367002,175.92,175.86,8.5275]
[1641128453770,31.72367002,175.92,175.86,9.0275]
[1641128454170,0.26,175.92,175.86,9.0275]
[1641128454471,8.7879,175.93,175.86,9.0275]
[1641128455971,0.26,175.93,175.86,9.0275]
[1641128456371,30.75115581,175.94,175.86,9.0275]
[1641128458272,39.27825581,175.94,175.86,9.0275]
[1641128458672,195.07825581,175.94,175.86,9.0275]
[1641128458873,186.55115581,175.94,175.86,9.0275]
[1641128459073,156.06,175.94,175.86,9.0275]
[1641128459672,164.587,175.94,175.86,9.0275]
[1641128461980,156.06,175.94,175.86,9.0275]
[1641128473309,155.8,175.94,175.86,9.0275]
[1641128473509,164.3266,175.95,175.86,9.0275]
[1641128474009,155.8,175.95,175.86,9.0275]
[1641128475009,156.06,175.95,175.86,9.2875]
[1641128475410,156.06,175.95,175.87,1.3343]
[1641128475612,156.06,175.95,175.9,8.526]
[1641128476009,156.06,175.95,175.9,9.026]
[1641128477620,164.5866,175.95,175.9,0.5]
[1641128477819,164.5866,175.95,175.89,9.0264]
[1641128480222,156.06,175.95,175.89,9.0264]
[1641128481421,156.06,175.95,175.89,8.5264]
[1641128481624,164.5867,175.95,175.89,8.5264]
[1641128481822,164.5867,175.95,175.88,8.5269]
[1641128482924,164.5867,175.95,175.88,9.0269]
[1641128485332,164.5867,175.95,175.82,75.3407]
[1641128485532,164.5867,175.95,175.87,0.5]
[1641128485958,165.0867,175.95,175.87,0.5]
[1641128486155,1.278,175.94,175.82,77.0781]
[1641128486355,8.5283,175.92,175.85,8.5283]
[1641128486558,8.7883,175.92,175.85,8.5283]
[1641128486755,8.7883,175.92,175.85,9.0283]
[1641128488356,164.5883,175.92,175.85,9.0283]
[1641128496168,156.06,175.92,175.85,9.0283]
[1641128499270,164.5881,175.92,175.85,9.0283]
[1641128508980,155.8,175.92,175.85,9.0283]
[1641128509583,165.6055,175.94,175.85,9.0283]
[1641128510582,165.8655,175.94,175.85,9.0283]
[1641128512583,167.47582489,175.94,175.85,9.0283]
[1641128512983,165.8655,175.94,175.85,9.0283]
[1641128514184,166.3655,175.94,175.85,0.5]
[1641128514384,165.8655,175.94,175.84,9.0287]
[1641128514783,167.47582489,175.94,175.84,9.0287]
[1641128515185,167.97582489,175.94,175.84,9.0287]
[1641128517491,167.97582489,175.94,175.84,0.5]
[1641128517891,167.97582489,175.94,175.83,1.8305]
[1641128518093,167.97582489,175.94,175.83,1.3305]
[1641128518292,167.97582489,175.94,175.83,1.8305]
[1641128518692,167.97582489,175.94,175.83,10.3596]
[1641128519493,167.21582489,175.94,175.83,10.3596]
[1641128520717,167.21582489,175.94,175.83,10.6196]
[1641128520915,165.6055,175.94,175.83,10.6196]
[1641128521115,165.8655,175.94,175.83,10.6196]
[1641128522417,165.8655,175.94,175.83,10.3596]
[1641128523920,165.8655,175.94,175.83,10.6196]
[1641128528421,165.6055,175.94,175.83,10.6196]
[1641128529525,165.8655,175.94,175.83,10.6196]
[1641128530130,165.6055,175.94,175.83,10.6196]
[1641128531527,165.8655,175.94,175.83,10.6196]
[1641128532428,157.338,175.94,175.83,10.6196]
[1641128533530,156.06,175.94,175.83,10.6196]
[1641128533731,164.5873,175.94,175.83,10.6196]
[1641128537838,164.5873,175.94,175.83,10.3596]
[1641128539243,164.5873,175.94,175.83,10.6196]
[1641128542340,9.8693,175.93,175.83,10.6196]
[1641128542541,10.1293,175.93,175.83,10.6196]
[1641128544842,165.9293,175.93,175.83,10.6196]
[1641128546266,165.9293,175.93,175.83,10.3596]
[1641128547870,166.4293,175.93,175.83,10.3596]
[1641128548469,165.9293,175.93,175.83,9.8596]
[1641128548671,166.4293,175.93,175.83,9.8596]
[1641128549373,168.03962489,175.93,175.83,9.8596]
[1641128549773,168.03962489,175.93,175.83,10.3596]
[1641128550974,168.03962489,175.93,175.83,1.3305]
[1641128551973,1.61032489,175.92,175.83,1.8305]
[1641128552173,8.5296,175.89,175.83,1.8305]
[1641128552374,25.56023682,175.88,175.83,1.8305]
[1641128552574,25.82023682,175.88,175.83,1.8305]
[1641128553475,25.82023682,175.88,175.83,1.3305]
[1641128554881,181.62023682,175.88,175.83,1.3305]
[1641128566995,190.15033682,175.88,175.83,1.3305]
[1641128567196,195.84633682,175.88,175.82,75.3407]
[1641128567398,195.84633682,175.88,175.8,8.5301]
[1641128567595,195.84633682,175.88,175.8,10.3658]
[1641128567795,196.34633682,175.88,175.8,10.3658]
[1641128568097,195.84633682,175.88,175.8,10.3658]
[1641128568297,190.15033682,175.88,175.8,0.5]
[1641128568501,190.15033682,175.88,175.79,0.5]
[1641128568699,197.06033682,175.88,175.79,0.5]
[1641128568898,197.06033682,175.88,175.77,1.7669]
[1641128569096,1.284,175.87,175.77,1.2669]
[1641128569299,8.5326,175.83,175.77,1.7669]
[1641128569598,8.7926,175.83,175.77,0.5]
[1641128569995,8.7926,175.83,175.73,1.3394]
[1641128570199,164.5926,175.83,175.73,1.3394]
[1641128570398,164.5926,175.83,175.73,1.8394]
[1641128572206,164.5926,175.83,175.73,10.3731]
[1641128578909,165.0926,175.83,175.73,10.3731]
[1641128580531,164.5926,175.83,175.73,10.3731]
[1641128581534,164.5926,175.83,175.73,1.8394]
[1641128582634,1.3317,175.82,175.73,1.8394]
[1641128582834,8.5338,175.8,175.73,1.8394]
[1641128583036,8.7938,175.8,175.73,1.8394]
[1641128587735,8.7938,175.8,175.73,0.5]
[1641128587936,8.7938,175.8,175.72,0.5]
[1641128588339,8.7938,175.8,175.71,87.9302]
[1641128588737,8.5338,175.8,175.71,87.9302]
[1641128590141,8.7938,175.8,175.71,87.9302]
[1641128591141,10.1315,175.8,175.71,87.9302]
[1641128592442,10.1315,175.8,175.71,79.3954]
[1641128592443,10.6315,175.8,175.71,79.3954]
[1641128595543,166.4315,175.8,175.71,79.3954]
[1641128595743,165.9315,175.8,175.71,79.3954]
[1641128595943,164.3338,175.8,175.71,93.3599]
[1641128596148,155.8,175.8,175.71,93.6199]
[1641128596748,179.50803641,175.81,175.71,93.6199]
[1641128597148,179.50803641,175.81,175.71,93.3599]
[1641128597347,179.50803641,175.81,175.71,87.9299]
[1641128597546,179.50803641,175.81,175.71,88.1899]
[1641128598553,179.76803641,175.81,175.71,88.1899]
[1641128599354,179.76803641,175.81,175.71,87.9299]
[1641128600957,188.30143641,175.81,175.71,87.9299]
[1641128606994,188.04143641,175.81,175.71,88.1899]
[1641128607593,188.04143641,175.81,175.71,93.9129]
[1641128608595,188.30143641,175.81,175.71,93.9129]
[1641128608795,188.30143641,175.81,175.71,88.1899]
[1641128611897,188.30143641,175.81,175.71,87.9299]
[1641128613599,188.30143641,175.81,175.71,88.1899]
[1641128621905,188.30143641,175.81,175.71,87.4299]
[1641128622707,188.80143641,175.81,175.71,87.4299]
[1641128623907,188.30143641,175.81,175.71,87.4299]
[1641128625211,188.30143641,175.81,175.71,87.9299]
[1641128628518,188.80143641,175.81,175.71,87.9299]
[1641128630017,188.04143641,175.81,175.71,87.9299]
[1641128631319,188.04143641,175.81,175.71,87.74056649]
[1641128631519,188.30143641,175.81,175.71,87.74056649]
[1641128632623,188.30143641,175.81,175.71,88.00056649]
[1641128634022,188.80143641,175.81,175.71,88.00056649]
[1641128634220,188.30143641,175.81,175.71,88.00056649]
[1641128634721,188.30143641,175.81,175.71,87.74056649]
[1641128635424,188.30143641,175.81,175.71,87.24056649]
[1641128635622,188.30143641,175.81,175.71,86.74056649]
[1641128636623,188.80143641,175.81,175.71,86.74056649]
[1641128637424,188.80143641,175.81,175.71,87.24056649]
[1641128639752,188.04143641,175.81,175.71,87.24056649]
[1641128641052,188.30143641,175.81,175.71,87.24056649]
[1641128641252,188.30143641,175.81,175.71,87.50056649]
[1641128641653,188.30143641,175.81,175.71,87.24056649]
[1641128643855,188.80143641,175.81,175.71,87.24056649]
[1641128644956,188.30143641,175.81,175.71,87.24056649]
[1641128647960,188.80143641,175.81,175.71,87.24056649]
[1641128648661,188.30143641,175.81,175.71,87.24056649]
[1641128653166,188.04143641,175.81,175.71,87.24056649]
[1641128654466,188.30143641,175.81,175.71,87.24056649]
[1641128655369,188.80143641,175.81,175.71,87.24056649]
[1641128659072,188.30143641,175.81,175.71,87.24056649]
[1641128659271,188.80143641,175.81,175.71,87.24056649]
[1641128659573,188.30143641,175.81,175.71,86.74056649]
[1641128659771,188.80143641,175.81,175.71,87.24056649]
[1641128659971,188.30143641,175.81,175.71,87.24056649]
[1641128660470,188.80143641,175.81,175.71,87.24056649]
[1641128662473,188.80143641,175.81,175.71,78.70606649]
[1641128663883,188.80143641,175.81,175.71,78.20606649]
[1641128664583,188.80143641,175.81,175.71,1.3373]
[1641128665286,188.54143641,175.81,175.71,1.3373]
[1641128665487,188.54143641,175.81,175.71,1.8373]
[1641128665686,1.2989,175.8,175.71,1.8373]
[1641128665914,8.5349,175.78,175.71,1.8373]
[1641128666508,8.7949,175.78,175.71,1.3373]
[1641128666708,164.5949,175.78,175.71,1.3373]
[1641128668908,164.3349,175.78,175.71,9.8719]
[1641128669108,164.3349,175.78,175.71,10.3719]
[1641128670413,164.5949,175.78,175.71,9.8719]
[1641128675520,155.8,175.78,175.71,17.7579]
[1641128675722,23.70803641,175.81,175.71,19.18459368]
[1641128675723,179.50803641,175.81,175.71,19.18459368]
[1641128676719,155.8,175.81,175.71,19.18459368]
[1641128678421,156.06,175.81,175.71,12.05859368]
[1641128685332,155.8,175.81,175.71,12.05859368]
[1641128686730,0.26,175.81,175.71,12.05859368]
[1641128687136,189.80519684,175.82,175.71,12.05859368]
[1641128692240,189.80519684,175.82,175.71,11.55859368]
[1641128692536,189.80519684,175.82,175.71,11.29859368]
[1641128692738,198.33809684,175.82,175.71,9.8719]
[1641128693937,199.94842173,175.82,175.71,9.8719]
[1641128694536,199.94842173,175.82,175.71,9.3719]
[1641128694737,1.61032489,175.81,175.71,9.3719]
[1641128694936,8.535,175.78,175.71,9.3719]
[1641128695338,8.795,175.78,175.71,9.3719]
[1641128695538,8.795,175.78,175.7,92.9]
[1641128695941,9.295,175.78,175.7,92.9]
[1641128696741,165.095,175.78,175.7,92.9]
[1641128697941,166.70532489,175.78,175.7,92.9]
[1641128698343,166.70532489,175.78,175.67,9.7514]
[1641128698944,166.70532489,175.78,175.67,8.5368]
[1641128699142,8.5371,175.74,175.67,8.5368]
[1641128699342,24.60342982,175.73,175.67,8.5368]
[1641128699545,24.86342982,175.73,175.65,1.3212]
[1641128699748,24.86342982,175.73,175.65,1.8212]
[1641128699942,24.86342982,175.73,175.65,3.24789368]
[1641128701144,24.86342982,175.73,175.65,11.78569368]
[1641128701641,24.86342982,175.73,175.65,10.359]
[1641128702642,24.86342982,175.73,175.65,11.78569368]
[1641128703742,180.66342982,175.73,175.65,11.78569368]
[1641128709982,156.06,175.73,175.65,11.78569368]
[1641128713188,156.06,175.73,175.65,10.359]
[1641128713587,156.06,175.73,175.65,11.78569368]
[1641128714087,156.06,175.73,175.65,10.359]
[1641128714288,156.06,175.73,175.66,1.42669368]
[1641128714688,156.06,175.73,175.66,1.92669368]
[1641128715590,156.06,175.73,175.69,8.5358]
[1641128715793,155.8,175.73,175.69,8.5358]
[1641128715992,155.8,175.73,175.69,9.0358]
[1641128716191,28.20297074,175.76,175.69,9.0358]
[1641128716192,184.00297074,175.76,175.69,9.0358]
[1641128716801,155.8,175.76,175.69,15.0208]
[1641128716995,155.8,175.76,175.69,16.44749368]
[1641128717193,157.0731,175.79,175.69,16.44749368]
[1641128717393,157.0731,175.79,175.69,15.0208]
[1641128717792,29.12911504,175.78,175.69,15.0208]
[1641128717994,29.12911504,175.78,175.7,1.287]
[1641128718193,29.12911504,175.78,175.71,8.5346]
[1641128718394,184.92911504,175.78,175.71,9.0346]
[1641128718592,185.18911504,175.78,175.71,9.0346]
[1641128718994,184.92911504,175.78,175.71,9.0346]
[1641128719593,184.92911504,175.78,175.71,14.3696]
[1641128720396,185.18911504,175.78,175.71,14.3696]
[1641128721099,156.06,175.78,175.71,14.3696]
[1641128721696,156.06,175.78,175.71,14.6296]
[1641128722196,156.06,175.78,175.71,9.2946]
[1641128723702,156.06,175.78,175.71,6.724225]
[1641128724198,155.8,175.78,175.71,6.724225]
[1641128724399,185.27251026,175.79,175.71,6.724225]
[1641128724597,185.53251026,175.79,175.71,6.724225]
[1641128724802,157.3331,175.79,175.71,8.15091868]
[1641128726399,156.06,175.79,175.71,8.15091868]
[1641128726699,155.8,175.79,175.71,8.15091868]
[1641128729707,186.90261477,175.81,175.71,8.15091868]
[1641128729903,187.16261477,175.81,175.71,8.15091868]
[1641128730403,187.16261477,175.81,175.72,1.2628]
[1641128730605,187.16261477,175.81,175.76,8.5323]
[1641128730805,185.87211477,175.81,175.76,8.5323]
[1641128731206,156.06,175.81,175.76,8.5323]
[1641128731607,155.8,175.81,175.76,9.0323]
[1641128731808,157.41032489,175.85,175.76,10.45899368]
[1641128732205,155.8,175.85,175.76,10.45899368]
[1641128732405,155.8,175.85,175.76,10.71899368]
[1641128733430,185.67673782,175.88,175.76,10.71899368]
[1641128733631,0.26,175.85,175.76,10.71899368]
[1641128733834,155.8,175.85,175.76,10.71899368]
[1641128734031,156.06,175.85,175.76,12.02119368]
[1641128736235,156.06,175.85,175.76,11.76119368]
[1641128736835,156.06,175.85,175.76,9.0323]
[1641128737239,165.0916,175.85,175.76,9.0323]
[1641128737438,164.5916,175.85,175.76,8.5323]
[1641128738139,166.20192489,175.85,175.76,8.5323]
[1641128738741,166.20192489,175.85,175.76,9.0323]
[1641128740144,1.61032489,175.84,175.76,9.0323]
[1641128740944,165.94192489,175.85,175.76,9.0323]
[1641128741550,166.20192489,175.85,175.76,9.0323]
[1641128741745,164.5916,175.85,175.76,9.0323]
[1641128742446,166.20192489,175.85,175.76,9.0323]
[1641128743845,165.94192489,175.85,175.76,9.0323]
[1641128744045,165.94192489,175.85,175.76,9.2923]
[1641128744251,157.41032489,175.85,175.76,9.2923]
[1641128744851,155.8,175.85,175.76,9.2923]
[1641128745049,155.8,175.85,175.76,14.8913]
[1641128745247,156.06,175.85,175.76,16.31799368]
[1641128745449,155.8,175.85,175.76,16.31799368]
[1641128745848,157.41032489,175.86,175.76,16.31799368]
[1641128746248,157.41032489,175.86,175.77,8.21533177]
[1641128746548,157.41032489,175.86,175.81,8.5262]
[1641128746752,157.41032489,175.86,175.81,13.2892]
[1641128746948,155.8,175.86,175.81,14.0492]
[1641128747149,155.8,175.86,175.82,1.42669368]
[1641128747349,157.41032489,175.92,175.82,1.92669368]
[1641128747549,157.41032489,175.92,175.87,8.5263]
[1641128747751,155.8,175.92,175.87,8.5263]
[1641128747949,155.8,175.92,175.87,9.0263]
[1641128748150,28.9767757,175.91,175.87,9.0263]
[1641128748953,29.2367757,175.91,175.87,9.0263]
[1641128749151,29.2367757,175.91,175.87,8.5263]
[1641128749551,28.9767757,175.91,175.87,8.5263]
[1641128749754,28.9767757,175.91,175.87,9.0263]
[1641128749953,184.7767757,175.91,175.87,9.0263]
[1641128750355,184.7767757,175.91,175.87,9.2863]
[1641128750654,184.7767757,175.91,175.87,9.0263]
[1641128750853,155.8,175.91,175.87,9.2863]
[1641128751257,157.41032489,175.96,175.87,9.2863]
[1641128751857,27.9625616,175.95,175.87,9.2863]
[1641128752255,28.2225616,175.95,175.87,9.2863]
[1641128752658,28.2225616,175.95,175.87,9.0263]
[1641128754562,28.2225616,175.95,175.87,9.2863]
[1641128755359,28.2225616,175.95,175.87,9.0263]
[1641128756263,28.2225616,175.95,175.87,10.45299368]
[1641128756660,28.2225616,175.95,175.87,9.0263]
[1641128756861,185.63288649,175.95,175.87,8.5263]
[1641128757266,186.13288649,175.95,175.87,8.5263]
[1641128757664,185.63288649,175.95,175.87,8.5263]
[1641128758267,194.65968649,175.95,175.87,8.5263]
[1641128758465,193.0493616,175.95,175.87,8.5263]
[1641128758666,192.5493616,175.95,175.87,8.5263]
[1641128759067,193.0493616,175.95,175.87,8.5263]
[1641128759367,193.0493616,175.95,175.87,9.0263]
[1641128759569,184.0225616,175.95,175.87,9.0263]
[1641128760287,183.7625616,175.95,175.87,9.0263]
[1641128761287,184.2625616,175.95,175.87,8.5263]
[1641128761488,184.0225616,175.95,175.87,8.5263]
[1641128761688,1.61032489,175.94,175.87,8.5263]
[1641128762089,1.87032489,175.94,175.87,8.5263]
[1641128762487,1.87032489,175.94,175.87,9.0263]
[1641128763690,0.26,175.94,175.87,9.0263]
[1641128763988,185.63288649,175.95,175.87,9.0263]
[1641128765388,185.37288649,175.95,175.87,9.0263]
[1641128765589,185.37288649,175.95,175.87,9.2863]
[1641128765790,1.61032489,175.94,175.87,9.2863]
[1641128766389,183.7625616,175.95,175.87,9.2863]
[1641128766990,184.0225616,175.95,175.87,9.2863]
[1641128767391,184.0225616,175.95,175.87,9.0263]
[1641128772099,184.0225616,175.95,175.87,14.4763]
[1641128772598,183.7625616,175.95,175.87,14.4763]
[1641128772800,183.7625616,175.95,175.87,14.7363]
[1641128772999,183.7625616,175.95,175.87,16.16299368]
[1641128773398,183.7625616,175.95,175.87,10.71299368]
[1641128773600,183.7625616,175.95,175.87,9.2863]
[1641128773998,184.0225616,175.95,175.87,9.2863]
[1641128775701,184.0225616,175.95,175.87,10.71299368]
[1641128776100,183.7625616,175.95,175.87,10.71299368]
[1641128777300,183.7625616,175.95,175.87,9.2863]
[1641128779101,183.7625616,175.95,175.87,10.71299368]
[1641128780903,183.7625616,175.95,175.87,11.99799368]
[1641128783106,155.8,175.95,175.87,11.99799368]
[1641128783307,157.41032489,176.0,175.87,11.99799368]
[1641128783507,155.8,176.0,175.87,11.99799368]
[1641128784105,26.2334091,175.99,175.87,11.99799368]
[1641128784305,181.5334091,175.99,175.87,11.99799368]
[1641128785305,181.7934091,175.99,175.87,11.99799368]
[1641128791308,183.0388091,175.99,175.87,11.99799368]
[1641128797814,181.5334091,175.99,175.87,11.99799368]
[1641128807755,181.5334091,175.99,175.87,11.73799368]
[1641128809157,181.5334091,175.99,175.87,11.99799368]
[1641128811267,181.7934091,175.99,175.87,11.99799368]
[1641128811761,1.2305,175.98,175.87,11.99799368]
[1641128812561,157.0305,175.98,175.87,11.99799368]
[1641128816168,157.0305,175.98,175.87,11.73799368]
[1641128816371,157.2905,175.98,175.87,11.73799368]
[1641128817575,157.2905,175.98,175.87,11.99799368]
[1641128827622,157.0305,175.98,175.87,11.99799368]
[1641128827822,157.0305,175.98,175.87,21.04852361]